bitfinex/quotes_BTCUSD_20251029
["timestamp","ask_amount","ask_price","bid_price","bid_amount"]
[1761727672437,0.74246288,113280.0,113270.0,0.23175358]
[1761727672645,0.001,113280.0,113270.0,0.32157259]
[1761727672862,0.37173144,113280.0,113270.0,0.32157259]
[1761727673293,0.001,113280.0,113270.0,0.32157259]
[1761727673729,0.55630032,113290.0,113280.0,0.17655367]
[1761727673961,0.55630032,113290.0,113280.0,0.22856367]
[1761727675023,0.55630032,113290.0,113280.0,0.22956367]
[1761727679855,0.00896585,113290.0,113280.0,0.22956367]
[1761727680066,0.37079573,113290.0,113280.0,0.22956367]
[1761727681914,0.37966152,113300.0,113290.0,0.17653808]
[1761727682136,0.54751436,113310.0,113300.0,0.1765225]
[1761727682365,0.37100744,113310.0,113300.0,0.2285325]
[1761727682584,0.37997772,113310.0,113300.0,0.2285325]
[1761727682808,0.37100744,113310.0,113300.0,0.2285325]
[1761727683457,0.37100744,113310.0,113300.0,0.2305325]
[1761727684350,0.37100744,113310.0,113300.0,0.2315325]
[1761727684997,0.37983694,113310.0,113300.0,0.2315325]
[1761727685456,0.37983694,113310.0,113300.0,0.2295325]
[1761727685894,0.37983694,113310.0,113300.0,0.2285325]
[1761727686320,0.37983694,113310.0,113300.0,0.2295325]
[1761727686561,0.37100744,113310.0,113300.0,0.2295325]
[1761727687883,0.00021171,113310.0,113300.0,0.2295325]
[1761727688124,0.37100744,113310.0,113300.0,0.2295325]
[1761727689060,0.37100744,113310.0,113300.0,0.31935151]
[1761727691253,0.91831009,113310.0,113300.0,0.31935151]
[1761727692621,0.74180317,113310.0,113300.0,0.31935151]
[1761727693061,0.91831009,113310.0,113300.0,0.31935151]
[1761727694154,0.74180317,113310.0,113300.0,0.31935151]
[1761727694376,0.91831009,113310.0,113300.0,0.31935151]
[1761727694884,0.74180317,113310.0,113300.0,0.31935151]
[1761727695090,0.91831009,113310.0,113300.0,0.31935151]
[1761727695308,1.0089791,113310.0,113300.0,0.2295325]
[1761727695548,0.92001009,113310.0,113300.0,0.001]
[1761727695770,1.26001009,113310.0,113300.0,0.001]
[1761727696426,0.1765225,113300.0,113290.0,0.01149]
[1761727696665,0.54616823,113300.0,113290.0,0.02741]
[1761727696909,0.54616823,113300.0,113290.0,0.01149]
[1761727697150,0.17653808,113290.0,113280.0,0.22169135]
[1761727697384,0.54733381,113290.0,113280.0,0.31151036]
[1761727697610,0.54733381,113290.0,113280.0,0.32743036]
[1761727706148,0.54733381,113290.0,113280.0,0.14204901]
[1761727706364,0.54733381,113290.0,113280.0,0.31860268]
[1761727708082,0.61951944,113290.0,113280.0,0.05223]
[1761727708522,0.61951944,113290.0,113280.0,0.22878367]
[1761727708766,0.54733381,113290.0,113280.0,0.22878367]
[1761727711182,0.54733381,113290.0,113280.0,0.22978367]
[1761727712244,0.54733381,113290.0,113280.0,0.23378367]
[1761727714499,0.37079573,113290.0,113280.0,0.23378367]
[1761727715551,0.54733381,113290.0,113280.0,0.23378367]
[1761727715984,0.54531823,113300.0,113290.0,0.17653808]
[1761727716202,0.54531823,113300.0,113290.0,0.22958808]
[1761727716658,0.17653808,113290.0,113280.0,0.005]
[1761727716874,0.91982954,113290.0,113280.0,0.004]
[1761727717084,0.17655367,113280.0,113270.0,0.00314433]
[1761727717295,0.91984513,113280.0,113270.0,0.00314433]
[1761727717510,1.25984513,113280.0,113270.0,0.00314433]
[1761727718141,1.27874278,113280.0,113270.0,0.00314433]
[1761727718342,1.25984513,113280.0,113270.0,0.00314433]
[1761727718752,1.25899513,113280.0,113270.0,0.01942433]
[1761727719825,1.25899513,113280.0,113270.0,0.02042433]
[1761727720973,1.31491787,113280.0,113270.0,0.00414433]
[1761727721406,1.31491567,113280.0,113270.0,0.00414433]
[1761727733198,1.32310906,113280.0,113270.0,0.00414433]
[1761727733413,1.6946097,113280.0,113270.0,0.00414433]
[1761727736445,1.98442871,113280.0,113270.0,0.00414433]
[1761727736658,1.61339801,113280.0,113270.0,0.00414433]
[1761727736874,1.32272957,113280.0,113270.0,0.00414433]
[1761727738819,1.32357957,113280.0,113270.0,0.00414433]
[1761727740485,1.32272957,113280.0,113270.0,0.00414433]
[1761727741780,1.32357957,113280.0,113270.0,0.00414433]
[1761727743754,1.28654729,113280.0,113270.0,0.00414433]
[1761727743971,1.28654729,113280.0,113270.0,0.05561433]
[1761727744182,1.28654729,113280.0,113270.0,0.03253433]
[1761727744393,1.28569729,113280.0,113270.0,0.05561433]
[1761727745298,0.76914362,113280.0,113270.0,0.05561433]
[1761727745512,0.94569729,113280.0,113270.0,0.05561433]
[1761727745975,0.92680903,113280.0,113270.0,0.23218358]
[1761727746247,0.3710307,113280.0,113270.0,0.23218358]
[1761727746982,0.54758437,113280.0,113270.0,0.23218358]
[1761727747187,0.91861507,113280.0,113270.0,0.23218358]
[1761727747402,0.94576125,113280.0,113270.0,0.23218358]
[1761727747884,0.76920758,113280.0,113270.0,0.23218358]
[1761727748095,0.94576125,113280.0,113270.0,0.32200259]
[1761727748306,0.93754456,113280.0,113270.0,0.32200259]
[1761727748529,0.91861507,113280.0,113270.0,0.32200259]
[1761727748752,0.7420614,113280.0,113270.0,0.32200259]
[1761727749388,0.91861507,113280.0,113270.0,0.32200259]
[1761727749624,0.7420614,113280.0,113270.0,0.32200259]
[1761727751836,0.91861507,113280.0,113270.0,0.32200259]
[1761727753352,0.91861507,113280.0,113270.0,0.14543334]
[1761727753560,0.91861507,113280.0,113270.0,0.32200259]
[1761727761091,0.7420614,113280.0,113270.0,0.32200259]
[1761727761683,0.3710307,113280.0,113270.0,0.32200259]
[1761727761887,0.7420614,113280.0,113270.0,0.32200259]
[1761727762338,0.91861507,113280.0,113270.0,0.32200259]
[1761727765628,0.91861507,113280.0,113270.0,0.14543334]
[1761727766051,0.91861507,113280.0,113270.0,0.32200259]
[1761727766611,0.91946507,113280.0,113270.0,0.20910358]
[1761727766837,0.91946507,113280.0,113270.0,0.03253433]
[1761727769577,0.93840621,113280.0,113270.0,0.03253433]
[1761727772390,1.30943691,113280.0,113270.0,0.00414433]
[1761727772610,0.93840621,113280.0,113270.0,0.00414433]
[1761727774316,1.30943691,113280.0,113270.0,0.00414433]
[1761727774531,1.35469521,113280.0,113270.0,0.00414433]
[1761727776008,1.35469575,113280.0,113270.0,0.00414433]
[1761727776219,1.69469575,113280.0,113270.0,0.00414433]
[1761727780632,1.78451476,113280.0,113270.0,0.00414433]
[1761727781042,1.80816273,113280.0,113270.0,0.00414433]
[1761727783130,1.83470286,113280.0,113270.0,0.00414433]
[1761727793412,1.4637897,113280.0,113270.0,0.00414433]
[1761727794473,1.46377516,113280.0,113270.0,0.00414433]
[1761727796801,0.21276712,113260.0,113250.0,0.00143045]
[1761727797073,1.06232428,113260.0,113250.0,0.00155857]
[1761727797299,3.4757461,113260.0,113250.0,0.00155857]
[1761727797678,3.50229476,113260.0,113250.0,0.00155857]
[1761727797881,3.51017545,113260.0,113250.0,0.00155857]
[1761727798116,3.51117545,113260.0,113250.0,0.00155857]
[1761727798339,3.53478533,113260.0,113250.0,0.00155857]
[1761727798529,3.95649673,113260.0,113250.0,1e-08]
[1761727799114,4.02336546,113260.0,113250.0,1e-08]
[1761727799312,4.02836546,113260.0,113250.0,1e-08]
[1761727799492,3.01815704,113260.0,113250.0,1e-08]
[1761727799694,2.95970533,113260.0,113250.0,1e-08]
[1761727800905,2.95964766,113260.0,113250.0,1e-08]
[1761727801680,2.95964766,113260.0,113220.0,0.03042625]
[1761727801681,4.06608232,113230.0,113220.0,0.03042625]
[1761727801899,3.84477259,113230.0,113220.0,1e-08]
[1761727802144,3.90704913,113230.0,113220.0,1e-08]
[1761727802362,3.87563031,113230.0,113220.0,1e-08]
[1761727802577,3.90218761,113230.0,113220.0,1e-08]
[1761727802988,3.89368761,113230.0,113220.0,1e-08]
[1761727803475,3.89968761,113230.0,113220.0,0.00100001]
[1761727803708,3.93507644,113230.0,113220.0,0.00100001]
[1761727803928,1.86967989,113230.0,113220.0,0.00100001]
[1761727804144,1.66967989,113230.0,113220.0,0.00100001]
[1761727804372,1.86967989,113230.0,113220.0,0.00100001]
[1761727804597,1.27502631,113230.0,113220.0,0.00100001]
[1761727804781,1.64711578,113230.0,113220.0,0.00100001]
[1761727807467,1.64711578,113230.0,113220.0,0.00163584]
[1761727808577,1.63893352,113230.0,113220.0,0.00163584]
[1761727809445,1.84708909,113230.0,113220.0,0.00163584]
[1761727809917,4.12139681,113230.0,113220.0,0.00163584]
[1761727810126,4.14496092,113230.0,113220.0,0.00163584]
[1761727811541,3.90066092,113230.0,113220.0,1e-08]
[1761727811764,3.92758987,113230.0,113220.0,1e-08]
[1761727811979,3.95900869,113230.0,113220.0,1e-08]
[1761727812549,4.33009816,113230.0,113220.0,1e-08]
[1761727812765,4.31653404,113230.0,113220.0,1e-08]
[1761727813623,3.13632897,113230.0,113220.0,1e-08]
[1761727813808,3.87850791,113230.0,113220.0,1e-08]
[1761727814073,3.90198545,113230.0,113220.0,1e-08]
[1761727814754,3.90851563,113230.0,113220.0,1e-08]
[1761727814986,3.97331622,113230.0,113220.0,1e-08]
[1761727815244,3.97331218,113230.0,113220.0,1e-08]
[1761727815488,3.97322891,113230.0,113220.0,1e-08]
[1761727815714,4.02035714,113230.0,113220.0,1e-08]
[1761727816151,4.03035713,113230.0,113220.0,1e-08]
[1761727817820,3.95555655,113230.0,113220.0,1e-08]
[1761727818038,3.92554883,113230.0,113220.0,1e-08]
[1761727819369,3.89413001,113230.0,113220.0,1e-08]
[1761727819796,3.92544851,113230.0,113220.0,1e-08]
[1761727820239,3.89413001,113230.0,113220.0,1e-08]
[1761727822693,3.15195107,113230.0,113220.0,1e-08]
[1761727822901,3.89413001,113230.0,113220.0,1e-08]
[1761727823110,1.89413001,113230.0,113220.0,1e-08]
[1761727824196,3.89413001,113230.0,113220.0,1e-08]
[1761727824428,3.84700178,113230.0,113220.0,1e-08]
[1761727825343,3.91016447,113230.0,113220.0,1e-08]
[1761727826230,0.55286072,113200.0,113190.0,0.03895564]
[1761727826450,0.97532105,113200.0,113190.0,0.05406398]
[1761727827350,0.97617105,113200.0,113190.0,0.02660398]
[1761727827581,0.97632105,113200.0,113190.0,0.02860398]
[1761727828051,0.97632105,113200.0,113190.0,0.04366398]
[1761727828244,1.00777204,113200.0,113190.0,0.04366398]
[1761727829593,1.00777204,113200.0,113190.0,0.08077398]
[1761727830010,0.97073976,113200.0,113190.0,0.08077398]
[1761727831136,0.97073976,113200.0,113190.0,0.25746803]
[1761727831357,0.5681993,113200.0,113190.0,0.25746803]
[1761727831575,0.93928877,113200.0,113190.0,0.25746803]
[1761727832046,0.93928877,113200.0,113190.0,0.25810411]
[1761727832269,0.59928877,113200.0,113190.0,0.25810411]
[1761727832488,0.05152086,113200.0,113190.0,0.34792312]
[1761727833189,0.001,113200.0,113190.0,0.34792312]
[1761727834831,0.57535239,113220.0,113210.0,0.17666283]
[1761727835047,0.58356256,113220.0,113210.0,0.20412283]
[1761727835287,0.66426489,113220.0,113210.0,0.22904482]
[1761727835504,0.66426265,113220.0,113210.0,0.22904482]
[1761727835780,0.66426265,113220.0,113210.0,0.25559453]
[1761727836254,0.02699126,113220.0,113210.0,0.25559453]
[1761727836497,0.19541272,113230.0,113220.0,0.17664723]
[1761727836729,0.57470724,113230.0,113220.0,0.22881723]
[1761727837805,0.57670724,113230.0,113220.0,0.22881723]
[1761727839110,0.40007561,113230.0,113220.0,0.22881723]
[1761727839345,0.63303289,113230.0,113220.0,0.25536441]
[1761727839615,0.45640126,113230.0,113220.0,0.25536441]
[1761727839848,0.43762017,113230.0,113220.0,0.25536441]
[1761727840504,0.37308947,113230.0,113220.0,0.25536441]
[1761727840959,0.5497211,113230.0,113220.0,0.25536441]
[1761727841835,0.37308947,113230.0,113220.0,0.25536441]
[1761727842513,0.18019466,113230.0,113220.0,0.25536441]
[1761727843001,0.37308947,113230.0,113220.0,0.22881723]
[1761727843238,0.54963279,113230.0,113220.0,0.22881723]
[1761727843472,0.37300116,113230.0,113220.0,0.22881723]
[1761727844095,0.00191169,113230.0,113220.0,0.22881723]
[1761727844538,0.00191169,113230.0,113220.0,0.27062644]
[1761727844749,0.00191169,113230.0,113220.0,0.31863624]
[1761727846069,0.00191169,113230.0,113220.0,0.31963624]
[1761727846514,0.54770653,113240.0,113230.0,0.17663163]
[1761727846726,0.54770653,113240.0,113230.0,0.22793163]
[1761727848087,0.54770653,113240.0,113230.0,0.22893163]
[1761727849611,0.54664653,113240.0,113230.0,0.22893163]
[1761727855506,0.91891312,113240.0,113230.0,0.22893163]
[1761727857879,0.91891312,113240.0,113230.0,0.21303163]
[1761727860600,0.91891312,113240.0,113230.0,0.0523]
[1761727861035,0.91891312,113240.0,113230.0,0.22893163]
[1761727863201,0.93783052,113240.0,113230.0,0.22893163]
[1761727863794,0.93783052,113240.0,113230.0,0.0523]
[1761727863998,0.93783052,113240.0,113230.0,0.22893163]
[1761727868369,0.93782949,113240.0,113230.0,0.22893163]
[1761727875298,0.94605629,113240.0,113230.0,0.22893163]
[1761727876356,0.93782949,113240.0,113230.0,0.22893163]
[1761727877430,0.93768354,113240.0,113230.0,0.22893163]
[1761727877653,0.93782949,113240.0,113230.0,0.22893163]
[1761727880871,0.39006543,113240.0,113230.0,0.22893163]
[1761727881233,0.56668146,113240.0,113230.0,0.22893163]
[1761727881859,0.39006543,113240.0,113230.0,0.22893163]
[1761727883158,0.0189174,113240.0,113230.0,0.31875064]
[1761727883375,0.56796318,113250.0,113240.0,0.17661603]
[1761727883586,0.94733786,113250.0,113240.0,0.22911603]
[1761727883795,0.42188032,113250.0,113240.0,0.22911603]
[1761727884018,0.59848076,113250.0,113240.0,0.22911603]
[1761727884795,0.57689252,113250.0,113240.0,0.22911603]
[1761727886266,0.56866587,113250.0,113240.0,0.0525]
[1761727886474,0.56866587,113250.0,113240.0,0.22911603]
[1761727889241,0.19751784,113250.0,113240.0,0.22911603]
[1761727889458,0.54974847,113250.0,113240.0,0.22911603]
[1761727889672,0.56866587,113250.0,113240.0,0.22911603]
[1761727889976,0.39206543,113250.0,113240.0,0.22911603]
[1761727890392,0.37314803,113250.0,113240.0,0.22911603]
[1761727890818,0.37114803,113250.0,113240.0,0.22911603]
[1761727891061,0.37114803,113250.0,113240.0,0.23011603]
[1761727891273,0.51658484,113260.0,113250.0,0.17660044]
[1761727891478,0.91490041,113260.0,113250.0,0.22910044]
[1761727891894,0.53552967,113260.0,113250.0,0.22910044]
[1761727892071,0.9066777,113260.0,113250.0,0.22910044]
[1761727892320,1.27782573,113260.0,113250.0,0.22910044]
[1761727892734,1.27982573,113260.0,113250.0,0.22910044]
[1761727894000,1.27982573,113260.0,113250.0,0.0525]
[1761727894835,1.27782573,113260.0,113250.0,0.0525]
[1761727895022,1.27782573,113260.0,113250.0,0.23010044]
[1761727896365,1.27782573,113260.0,113250.0,0.0535]
[1761727897894,1.27782573,113260.0,113250.0,0.23010044]
[1761727899958,1.27782573,113260.0,113250.0,0.0535]
[1761727901460,1.27782573,113260.0,113250.0,0.23010044]
[1761727902336,1.27867573,113260.0,113250.0,0.02902]
[1761727903193,1.27867573,113260.0,113250.0,0.05354]
[1761727905176,1.27782573,113260.0,113250.0,0.05354]
[1761727905638,0.53637967,113260.0,113250.0,0.02902]
[1761727905850,1.27867573,113260.0,113250.0,0.02902]
[1761727908416,1.27866925,113260.0,113250.0,0.02902]
[1761727908635,1.27781925,113260.0,113250.0,0.23014044]
[1761727908886,0.90667122,113260.0,113250.0,0.23014044]
[1761727909099,1.27781925,113260.0,113250.0,0.23014044]
[1761727909947,1.27781925,113260.0,113250.0,0.05354]
[1761727913860,0.53552319,113260.0,113250.0,0.23014044]
[1761727914077,1.27781925,113260.0,113250.0,0.23014044]
[1761727915084,1.27781925,113260.0,113250.0,0.05354]
[1761727915290,0.90654899,113260.0,113250.0,0.05354]
[1761727916405,0.91477573,113260.0,113250.0,0.23014044]
[1761727916609,0.91477573,113260.0,113250.0,0.05354]
[1761727916815,0.91477573,113260.0,113250.0,0.04854]
[1761727917775,0.91477573,113260.0,113250.0,0.22514044]
[1761727919396,0.90654899,113260.0,113250.0,0.22514044]
[1761727919656,0.53552319,113260.0,113250.0,0.22514044]
[1761727919862,0.01893835,113260.0,113250.0,0.31495945]
[1761727920031,0.93910405,113270.0,113260.0,0.17658484]
[1761727920212,0.94746165,113270.0,113260.0,0.22779484]
[1761727921384,0.92578872,113270.0,113260.0,0.22779484]
[1761727921623,0.916891,113270.0,113260.0,0.22779484]
[1761727922442,0.916891,113270.0,113260.0,0.02669]
[1761727922849,0.916891,113270.0,113260.0,0.22779484]
[1761727923065,0.91688764,113270.0,113260.0,0.05121]
[1761727923532,0.91688764,113270.0,113260.0,0.22779484]
[1761727923742,0.91688764,113270.0,113260.0,0.05121]
[1761727924650,0.91688764,113270.0,113260.0,0.22779484]
[1761727926146,0.90866058,113270.0,113260.0,0.22779484]
[1761727928907,0.02107156,113270.0,113260.0,0.68863965]
[1761727929138,0.00212718,113270.0,113260.0,0.68863965]
[1761727930494,0.00012718,113270.0,113260.0,0.68863965]
[1761727930938,0.00112718,113270.0,113260.0,0.69263965]
[1761727931156,0.00012718,113270.0,113260.0,0.68963965]
[1761727931369,0.00012718,113270.0,113260.0,0.68863965]
[1761727931586,0.00112718,113270.0,113260.0,0.68195965]
[1761727931805,0.00112718,113270.0,113260.0,0.31093385]
[1761727932451,0.00112718,113270.0,113260.0,0.68195965]
[1761727932663,0.00112718,113270.0,113260.0,0.31093385]
[1761727932880,0.00112718,113270.0,113260.0,0.31193385]
[1761727933724,0.00112718,113270.0,113260.0,0.68295965]
[1761727933932,0.00112718,113270.0,113260.0,0.31193385]
[1761727940072,0.00112718,113270.0,113260.0,0.68295965]
[1761727940285,0.00112718,113270.0,113260.0,0.77010066]
[1761727940709,0.00112718,113270.0,113260.0,0.68295965]
[1761727951143,0.00112718,113270.0,113260.0,1.02295965]
[1761727952477,0.00078804,113270.0,113260.0,1.02295965]
[1761727960566,0.39876115,113320.0,113300.0,0.1765089]
[1761727960795,0.92397914,113320.0,113310.0,0.02828]
[1761727961032,0.92397914,113320.0,113310.0,0.22744692]
[1761727961470,0.93297168,113320.0,113310.0,0.22744692]
[1761727961746,0.03960584,113320.0,113310.0,0.22744692]
[1761727961977,0.02069505,113320.0,113310.0,0.22744692]
[1761727962201,0.01769505,113320.0,113310.0,0.22744692]
[1761727962416,0.02069505,113320.0,113310.0,0.22844692]
[1761727962633,0.02069505,113320.0,113310.0,0.22744692]
[1761727962832,0.01769505,113320.0,113310.0,0.22744692]
[1761727964355,0.01869505,113320.0,113310.0,0.22744692]
[1761727965196,0.00970251,113320.0,113310.0,0.22744692]
[1761727966027,0.01012589,113320.0,113310.0,0.22744692]
[1761727966232,0.00912589,113320.0,113310.0,0.22744692]
[1761727966630,0.00090698,113320.0,113310.0,0.22744692]
[1761727967084,0.00986477,113320.0,113310.0,0.22744692]
[1761727967291,0.01808368,113320.0,113310.0,0.22744692]
[1761727967513,0.58413083,113320.0,113310.0,0.20578692]
[1761727967738,0.58413083,113320.0,113310.0,0.17750692]
[1761727967951,0.58413083,113320.0,113310.0,0.001]
[1761727967952,0.61525325,113320.0,113310.0,0.001]
[1761727969044,0.17651931,113310.0,113290.0,0.2193886]
[1761727969315,0.58321734,113300.0,113280.0,0.21056628]
[1761727969532,0.3710258,113290.0,113280.0,0.30038529]
[1761727969743,0.17653808,113290.0,113280.0,0.30038529]
[1761727969962,0.5533983,113300.0,113290.0,0.01651]
[1761727970176,0.56161392,113300.0,113290.0,0.02828]
[1761727970584,0.56161392,113300.0,113290.0,0.05094]
[1761727970980,0.64018187,113300.0,113290.0,0.05094]
[1761727971219,0.63196625,113300.0,113290.0,0.05094]
[1761727971423,0.5533983,113300.0,113290.0,0.05094]
[1761727972284,0.5533983,113300.0,113290.0,0.05194]
[1761727975889,0.1823725,113300.0,113290.0,0.05194]
[1761727976086,0.5533983,113300.0,113290.0,0.05194]
[1761727977424,0.55313343,113300.0,113290.0,0.05194]
[1761727977868,0.92389436,113300.0,113290.0,0.05194]
[1761727978044,0.93608436,113300.0,113290.0,0.05194]
[1761727979077,0.92389436,113300.0,113290.0,0.05194]
[1761727980280,0.1765225,113300.0,113290.0,0.27909841]
[1761727980465,0.1765225,113300.0,113290.0,0.22847808]
[1761727983162,0.54728343,113300.0,113290.0,0.22847808]
[1761727984247,0.1765225,113300.0,113290.0,0.22847808]
[1761727984519,0.54728343,113300.0,113290.0,0.22847808]
[1761727985673,0.54728343,113300.0,113290.0,0.05194]
[1761727985903,0.54728343,113300.0,113290.0,0.22847808]
[1761727991841,0.18555636,113310.0,113290.0,0.31829709]
[1761727992056,0.90453971,113310.0,113300.0,0.05324]
[1761727992263,0.92348389,113310.0,113300.0,0.05324]
[1761727993742,0.55272296,113310.0,113300.0,0.05324]
[1761727993867,0.92348389,113310.0,113300.0,0.05324]
[1761727994276,0.92448389,113310.0,113300.0,0.2297625]
[1761727995331,0.58448389,113310.0,113300.0,0.2297625]
[1761727995535,0.02015589,113310.0,113300.0,0.2297625]
[1761727995753,0.17771863,113310.0,113300.0,0.2297625]
[1761727996201,0.54847956,113310.0,113300.0,0.2196025]
[1761727997406,0.54747956,113310.0,113300.0,0.2206025]
[1761727997649,0.54847956,113310.0,113300.0,0.2236025]
[1761727998231,0.56398956,113310.0,113300.0,0.1986725]
[1761727998453,0.54847956,113310.0,113300.0,0.2236025]
[1761727998677,0.17771863,113310.0,113300.0,0.2236025]
[1761727999355,0.00121171,113310.0,113300.0,0.2236025]
[1761727999573,0.17771863,113310.0,113300.0,0.2236025]
[1761728002908,0.54847956,113310.0,113300.0,0.2236025]
[1761728003958,0.37197264,113310.0,113300.0,0.2236025]
[1761728005478,0.37197264,113310.0,113300.0,0.36359447]
[1761728005479,0.00121171,113310.0,113300.0,0.36359447]
[1761728005696,0.00121171,113310.0,113300.0,0.68418244]
[1761728005913,0.00121171,113310.0,113300.0,0.31342151]
[1761728007888,0.37197264,113310.0,113300.0,0.31342151]
[1761728008079,0.00078227,113310.0,113300.0,0.31342151]
[1761728008293,0.3715432,113310.0,113300.0,0.31342151]
[1761728008805,0.00078227,113310.0,113300.0,0.31342151]
[1761728011641,0.00078227,113310.0,113300.0,0.40067056]
[1761728012313,0.00078227,113310.0,113300.0,0.77143149]
[1761728013856,0.00078227,113310.0,113300.0,0.68418244]
[1761728016019,0.00078227,113310.0,113300.0,0.31342151]
[1761728016668,0.3715432,113310.0,113300.0,0.31342151]
[1761728017729,0.3881632,113310.0,113300.0,0.31342151]
[1761728018172,0.3715432,113310.0,113300.0,0.31342151]
[1761728019246,0.00078227,113310.0,113300.0,0.31342151]
[1761728019439,0.3715432,113310.0,113300.0,0.31342151]
[1761728028219,0.00078227,113310.0,113300.0,0.31342151]
[1761728028432,0.3715432,113310.0,113300.0,0.31342151]
[1761728034690,0.00078227,113310.0,113300.0,0.31342151]
[1761728034894,0.3715432,113310.0,113300.0,0.31342151]
[1761728035771,0.56467012,113310.0,113300.0,0.1986725]
[1761728035988,0.58702012,113310.0,113300.0,0.004]
[1761728036204,0.92702012,113310.0,113300.0,0.004]
[1761728036427,1.31676957,113310.0,113300.0,0.004]
[1761728036640,1.32501092,113310.0,113300.0,0.004]
[1761728037497,1.32505098,113310.0,113300.0,0.001]
[1761728037658,1.32426871,113310.0,113300.0,0.001]
[1761728037856,0.1765225,113300.0,113280.0,0.22105396]
[1761728038098,0.56977346,113300.0,113290.0,0.19181808]
[1761728039987,0.56977346,113300.0,113290.0,0.20427808]
[1761728040204,0.56977346,113300.0,113290.0,0.22859808]
[1761728040424,0.1765225,113300.0,113290.0,0.22859808]
[1761728040642,0.1775225,113300.0,113290.0,0.22859808]
[1761728040863,0.1765225,113300.0,113290.0,0.22859808]
[1761728041303,0.1775225,113300.0,113290.0,0.23059808]
[1761728047927,0.001,113300.0,113290.0,0.23059808]
[1761728048162,0.1775225,113300.0,113290.0,0.23059808]
[1761728053637,0.1937825,113300.0,113290.0,0.19439808]
[1761728053864,0.1775225,113300.0,113290.0,0.22867808]
[1761728054078,0.1937825,113300.0,113290.0,0.20589808]
[1761728054853,0.1937825,113300.0,113290.0,0.22867808]
[1761728055703,0.00356347,113300.0,113290.0,0.20589808]
[1761728055918,0.18008597,113300.0,113290.0,0.20589808]
[1761728056382,1.30748017,113300.0,113290.0,0.002]
[1761728056599,1.45102288,113300.0,113290.0,0.002]
[1761728057016,1.45102288,113300.0,113260.0,0.17658477]
[1761728057017,0.34,113280.0,113260.0,0.17658477]
[1761728057262,0.00965,113270.0,113260.0,0.22672477]
[1761728057479,0.00965,113280.0,113270.0,0.22670925]
[1761728057717,0.00965,113280.0,113270.0,0.31652826]
[1761728058144,0.19585367,113280.0,113270.0,0.11717901]
[1761728058350,0.19585367,113280.0,113270.0,0.26638826]
[1761728058603,0.20550367,113280.0,113270.0,0.08981901]
[1761728058833,0.19585367,113280.0,113270.0,0.01586]
[1761728059064,0.21192512,113290.0,113270.0,0.33418518]
[1761728059279,0.57122512,113290.0,113280.0,0.02736]
[1761728060157,0.17655367,113280.0,113270.0,0.30166826]
[1761728060609,0.17655367,113280.0,113270.0,0.31752826]
[1761728060825,0.18620367,113280.0,113270.0,0.27788826]
[1761728061258,0.18720367,113280.0,113270.0,0.28088826]
[1761728061904,0.18720367,113280.0,113270.0,0.26938826]
[1761728062370,0.18720367,113280.0,113270.0,0.31952826]
[1761728062879,0.18720367,113280.0,113270.0,0.29674826]
[1761728065027,1.31459787,113280.0,113270.0,0.003]
[1761728065274,1.34176271,113280.0,113270.0,0.003]
[1761728065498,1.3683023,113280.0,113270.0,0.003]
[1761728065946,1.3683023,113280.0,113220.0,0.5980869]
[1761728065947,0.17662855,113240.0,113220.0,0.04192625]
[1761728066177,0.17662855,113240.0,113220.0,0.12037244]
[1761728066178,0.56671259,113230.0,113220.0,0.12037244]
[1761728066401,0.57636259,113230.0,113220.0,0.12037244]
[1761728067092,0.60290829,113230.0,113220.0,0.03055343]
[1761728068173,0.60390829,113230.0,113220.0,0.03455343]
[1761728068389,0.60390829,113230.0,113220.0,0.03555343]
[1761728068828,0.60390829,113230.0,113220.0,0.03455343]
[1761728069504,0.61280748,113230.0,113220.0,0.03455343]
[1761728069711,0.61280748,113230.0,113220.0,0.03555343]
[1761728070566,0.60390829,113230.0,113220.0,0.03555343]
[1761728071236,0.59425829,113230.0,113220.0,0.03555343]
[1761728071441,0.21382733,113230.0,113220.0,0.35215967]
[1761728071695,1.1493885,113230.0,113220.0,0.03555343]
[1761728071953,2.02222677,113230.0,113220.0,0.03555343]
[1761728072166,0.17669405,113190.0,113180.0,0.0004]
[1761728072380,0.17669405,113190.0,113180.0,0.00044834]
[1761728072381,1.25825597,113190.0,113180.0,0.00044834]
[1761728072595,1.27956336,113190.0,113180.0,0.00044834]
[1761728072804,0.88747501,113190.0,113180.0,0.01922317]
[1761728073041,0.51669405,113190.0,113180.0,0.04200317]
[1761728073259,0.88747501,113190.0,113180.0,0.01922317]
[1761728073467,0.54325145,113190.0,113180.0,0.01922317]
[1761728073687,0.54325145,113190.0,113180.0,0.00336317]
[1761728074096,0.54325145,113190.0,113180.0,0.04200317]
[1761728074330,0.54325145,113190.0,113180.0,0.00336317]
[1761728074947,0.54425145,113190.0,113180.0,0.00436317]
[1761728075355,0.54325145,113190.0,113180.0,0.00336317]
[1761728075787,0.54425145,113190.0,113180.0,0.00836317]
[1761728079402,0.3675574,113190.0,113180.0,0.31429184]
[1761728079637,0.51769405,113190.0,113180.0,0.11452218]
[1761728080492,0.51769405,113190.0,113180.0,0.29123184]
[1761728080911,0.341,113190.0,113180.0,0.29123184]
[1761728081117,0.341,113190.0,113180.0,0.31429184]
[1761728081331,0.341,113190.0,113180.0,0.29123184]
[1761728081538,0.57211879,113190.0,113180.0,0.29123184]
[1761728081788,0.51769405,113190.0,113180.0,0.29123184]
[1761728082416,0.341,113190.0,113180.0,0.31429184]
[1761728082835,0.51769405,113190.0,113180.0,0.31429184]
[1761728083062,0.51769405,113190.0,113180.0,0.29123184]
[1761728083275,0.58713269,113190.0,113180.0,0.29123184]
[1761728083919,0.58713269,113190.0,113180.0,0.30322184]
[1761728084803,0.58713269,113190.0,113180.0,0.09818218]
[1761728085231,0.58713269,113190.0,113180.0,0.00836317]
[1761728085232,1.235737,113190.0,113180.0,0.00836317]
[1761728085542,0.58713269,113190.0,113180.0,0.00836317]
[1761728087861,1.235737,113190.0,113180.0,0.00836317]
[1761728093253,1.27191928,113190.0,113180.0,0.00836317]
[1761728093468,1.38533329,113190.0,113180.0,0.00836317]
[1761728094330,1.39351817,113190.0,113180.0,0.00836317]
[1761728094547,1.41721918,113190.0,113180.0,0.00836317]
[1761728095003,1.41621918,113190.0,113180.0,0.00336317]
[1761728095637,1.41721918,113190.0,113180.0,0.00436317]
[1761728096050,1.41621918,113190.0,113180.0,0.00336317]
[1761728096281,1.41721918,113190.0,113180.0,0.00436317]
[1761728097364,1.44865461,113190.0,113180.0,0.00436317]
[1761728099395,1.4249536,113190.0,113180.0,0.00436317]
[1761728100375,1.47213009,113190.0,113180.0,0.00436317]
[1761728100590,1.7619491,113190.0,113180.0,0.00436317]
[1761728100968,1.73049811,113190.0,113180.0,0.00436317]
[1761728101777,1.73053321,113190.0,113180.0,0.00436317]
[1761728101990,1.57127556,113190.0,113180.0,0.00436317]
[1761728102208,0.62347303,113190.0,113180.0,0.05575317]
[1761728102426,0.94788878,113190.0,113180.0,0.05575317]